fUST/lending_fUST_20250129
["ID","MTS","AMOUNT","RATE_DAILY","PERIOD"]
[350832595,1738151433236,-500.0,0.00016438,2]
[350832597,1738151433246,-503.44955452,0.00016438,2]
[350832599,1738151433256,-500.0,0.00016438,2]
[350832601,1738151433266,-503.28689703,0.00016438,2]
[350832603,1738151433275,-500.0,0.00016438,2]
[350832604,1738151433284,-500.0,0.00016438,2]
[350832606,1738151433294,-503.61308378,0.00016438,2]
[350832608,1738151433304,-504.61422248,0.00016438,2]
[350832610,1738151433314,-500.0,0.00016438,2]
[350832612,1738151433325,-500.0,0.00016438,2]
[350832614,1738151433335,-617.32,0.00016438,2]
[350832617,1738151433345,-500.0,0.00016438,2]
[350832618,1738151433356,-502.21258956,0.00016438,2]
[350832621,1738151433366,-500.0,0.00016438,2]
[350832623,1738151433376,-500.0,0.00016438,2]
[350832625,1738151433388,-500.0,0.00016438,2]
[350832626,1738151433398,-500.0,0.00016438,2]
[350832628,1738151433408,-500.0,0.00016438,2]
[350832631,1738151433418,-500.0,0.00016438,2]
[350832632,1738151433429,-576.28454564,0.00016438,2]
[350832634,1738151433439,-500.0,0.00016438,2]
[350832636,1738151433449,-500.0,0.00016438,2]
[350832638,1738151433458,-500.0,0.00016438,2]
[350832640,1738151433467,-504.13369875,0.00016438,2]
[350832642,1738151433477,-502.21791597,0.00016438,2]
[350832644,1738151433487,-500.8589783,0.00016438,2]
[350832646,1738151433496,-500.0,0.00016438,2]
[350832648,1738151433505,-500.0,0.00016438,2]
[350832650,1738151433515,-500.0,0.00016438,2]
[350832652,1738151433524,-502.5452839,0.00016438,2]
[350832654,1738151433534,-500.0,0.00016438,2]
[350832656,1738151433544,-500.0,0.00016438,2]
[350832658,1738151433554,-502.52711191,0.00016438,2]
[350832660,1738151433564,-500.0,0.00016438,2]
[350832662,1738151433574,-501.43054228,0.00016438,2]
[350832664,1738151433585,-500.0,0.00016438,2]
[350832666,1738151433594,-500.0,0.00016438,2]
[350832668,1738151433603,-504.50552859,0.00016438,2]
[350832670,1738151433613,-500.0,0.00016438,2]
[350832672,1738151433622,-500.0,0.00016438,2]
[350832674,1738151433632,-501.93298872,0.00016438,2]
[350832676,1738151433642,-500.0,0.00016438,2]
[350832677,1738151433651,-500.0,0.00016438,2]
[350832678,1738151433660,-500.0,0.00016438,2]
[350832679,1738151433669,-500.0,0.00016438,2]
[350832680,1738151433680,-500.0,0.00016438,2]
[350832681,1738151433689,-507.16320565,0.00016438,2]
[350832682,1738151433699,-500.0,0.00016438,2]
[350832683,1738151433708,-500.0,0.00016438,2]
[350832684,1738151433717,-539.93,0.00016438,2]
[350832685,1738151433726,-501.41685249,0.00016438,2]
[350832686,1738151433735,-500.0,0.00016438,2]
[350832687,1738151433744,-500.0,0.00016438,2]
[350832688,1738151433754,-500.0,0.00016438,2]
[350832689,1738151433763,-500.0,0.00016438,2]
[350832690,1738151433773,-502.02405485,0.00016438,2]
[350832691,1738151433783,-500.0,0.00016438,2]
[350832692,1738151433793,-500.0,0.00016438,2]
[350832693,1738151433802,-503.73406257,0.00016438,2]
[350832694,1738151433811,-500.0,0.00016438,2]
[350832695,1738151433821,-12032.24,0.00016438,2]
[350832696,1738151433831,-500.0,0.00016438,2]
[350832697,1738151433841,-500.0,0.00016438,2]
[350832698,1738151433850,-500.0,0.00016438,2]
[350832699,1738151433859,-500.0,0.00016438,2]
[350832700,1738151433868,-500.0,0.00016438,2]
[350832701,1738151433877,-500.0,0.00016438,2]
[350832702,1738151433891,-500.93030154,0.00016438,2]
[350832704,1738151433900,-500.0,0.00016438,2]
[350832706,1738151433910,-563.26292151,0.00016438,2]
[350832708,1738151433919,-502.85312085,0.00016438,2]
[350832710,1738151433930,-500.0,0.00016438,2]
[350832712,1738151433940,-502.60710209,0.00016438,2]
[350832714,1738151433950,-500.0,0.00016438,2]
[350832716,1738151433959,-515.02053733,0.00016438,2]
[350832718,1738151433970,-504.80851235,0.00016438,2]
[350832720,1738151433979,-502.70731322,0.00016438,2]
[350832723,1738151433989,-500.0,0.00016438,2]
[350832724,1738151433998,-500.0,0.00016438,2]
[350832727,1738151434008,-501.000257,0.00016438,2]
[350832728,1738151434017,-500.0,0.00016438,2]
[350832730,1738151434027,-500.0,0.00016438,2]
[350832733,1738151434036,-500.0,0.00016438,2]
[350832735,1738151434046,-4584.46,0.00016438,2]
[350832736,1738151434056,-501.7610746,0.00016438,2]
[350832738,1738151434065,-500.0,0.00016438,2]
[350832740,1738151434075,-507.78433347,0.00016438,2]
[350832743,1738151434085,-500.0,0.00016438,2]
[350832744,1738151434094,-500.0,0.00016438,2]
[350832746,1738151434103,-500.0,0.00016438,2]
[350832748,1738151434113,-500.0,0.00016438,2]
[350832750,1738151434123,-500.0,0.00016438,2]
[350832753,1738151434132,-500.0,0.00016438,2]
[350832755,1738151434142,-500.0,0.00016438,2]
[350832757,1738151434152,-500.0,0.00016438,2]
[350832759,1738151434162,-500.0,0.00016438,2]
[350832761,1738151434172,-518.78,0.00016438,2]
[350832763,1738151434182,-607.6328422,0.00016438,2]
[350832765,1738151434192,-500.79496731,0.00016438,2]
[350832767,1738151434202,-501.3464324,0.00016438,2]
[350832769,1738151434211,-504.01052833,0.00016438,2]
[350832771,1738151434221,-508.66266606,0.00016438,2]
[350832773,1738151434231,-531.25175389,0.00016438,2]
[350832775,1738151434241,-504.28762451,0.00016438,2]
[350832777,1738151434250,-500.0,0.00016438,2]
[350832779,1738151434260,-500.0,0.00016438,2]
[350832781,1738151434269,-500.0,0.00016438,2]
[350832783,1738151434278,-500.0,0.00016438,2]
[350832785,1738151434288,-500.0,0.00016438,2]
[350832787,1738151434298,-507.69927305,0.00016438,2]
[350832789,1738151434308,-500.0,0.00016438,2]
[350832791,1738151434318,-504.29596468,0.00016438,2]
[350832793,1738151434327,-501.34839563,0.00016438,2]
[350832795,1738151434336,-500.94755264,0.00016438,2]
[350832797,1738151434345,-500.0,0.00016438,2]
[350832799,1738151434355,-501.55408983,0.00016438,2]
[350832801,1738151434364,-1000.0,0.00016438,2]
[350832803,1738151434374,-500.0,0.00016438,2]
[350832805,1738151434383,-500.0,0.00016438,2]
[350832807,1738151434394,-503.61334107,0.00016438,2]
[350832809,1738151434404,-501.54399866,0.00016438,2]
[350832811,1738151434414,-500.95495738,0.00016438,2]
[350832813,1738151434426,-500.0,0.00016438,2]
[350832815,1738151434435,-569.21035784,0.00016438,2]
[350832817,1738151434444,-308.53507303,0.00016438,2]
[350832819,1738151434454,-500.0,0.00016438,2]
[350832821,1738151434464,-500.0,0.00016438,2]
[350832823,1738151434474,-501.23005317,0.00016438,2]
[350832825,1738151434484,-500.0,0.00016438,2]
[350832827,1738151434494,-500.0,0.00016438,2]
[350832829,1738151434503,-527.61,0.00016438,2]
[350832831,1738151434513,-500.0,0.00016438,2]
[350832833,1738151434523,-505.24150788,0.00016438,2]
[350832835,1738151434533,-500.0,0.00016438,2]
[350832837,1738151434543,-511.64698148,0.00016438,2]
[350832839,1738151434552,-1524.14,0.00016438,2]
[350832841,1738151434562,-491.63399887,0.00016438,2]
[350832843,1738151434571,-500.0,0.00016438,2]
[350832845,1738151434581,-500.0,0.00016438,2]
[350832847,1738151434590,-501.01434013,0.00016438,2]
[350832849,1738151434600,-617.43120762,0.00016438,2]
[350832851,1738151434610,-502.35716878,0.00016438,2]
[350832853,1738151434619,-500.0,0.00016438,2]
[350832855,1738151434629,-3583.43,0.00016438,2]
[350832857,1738151434638,-500.0,0.00016438,2]
[350832859,1738151434647,-500.0,0.00016438,2]
[350832861,1738151434657,-500.0,0.00016438,2]
[350832863,1738151434666,-500.0,0.00016438,2]
[350832866,1738151434677,-561.64264187,0.00016438,2]
[350832868,1738151434687,-2133.95,0.00016438,2]
[350832869,1738151434696,-500.0,0.00016438,2]
[350832872,1738151434706,-500.0,0.00016438,2]
[350832874,1738151434715,-393.0,0.00016438,2]
[350832875,1738151434726,-502.44916778,0.00016438,2]
[350832878,1738151434736,-500.0,0.00016438,2]
[350832880,1738151434746,-334.1863682,0.00016438,2]
[350832882,1738151434756,-500.0,0.00016438,2]
[350832884,1738151434766,-500.0,0.00016438,2]
[350832886,1738151434776,-500.0,0.00016438,2]
[350832898,1738151434872,-500.74287687,0.00016438,2]
[350832900,1738151434896,-500.0,0.00016438,2]
[350832902,1738151434905,-500.0,0.00016438,2]
[350832904,1738151434915,-546.82721,0.00016438,2]
[350832906,1738151434924,-500.0,0.00016438,2]
[350832908,1738151434935,-500.0,0.00016438,2]
[350832910,1738151434944,-500.0,0.00016438,2]
[350832912,1738151434953,-150.78022881,0.00016438,2]
[350832914,1738151434964,-446.34288222,0.00016438,2]
[350832916,1738151434974,-500.0,0.00016438,2]
[350832918,1738151434983,-500.0,0.00016438,2]
[350832919,1738151434992,-503.04067732,0.00016438,2]
[350832922,1738151435003,-500.0,0.00016438,2]
[350832924,1738151435013,-500.0,0.00016438,2]
[350832926,1738151435023,-151.0,0.00016438,2]
[350832928,1738151435032,-500.0,0.00016438,2]
[350832930,1738151435042,-503.91689976,0.00016438,2]
[350832932,1738151435052,-500.0,0.00016438,2]
[350832934,1738151435061,-500.0,0.00016438,2]
[350832936,1738151435070,-500.0,0.00016438,2]
[350832938,1738151435080,-500.0,0.00016438,2]
[350832940,1738151435089,-501.13571995,0.00016438,2]
[350832942,1738151435099,-500.72735406,0.00016438,2]
[350832944,1738151435108,-1478.76,0.00016438,2]
[350832946,1738151435118,-200.0,0.00016438,2]
[350832948,1738151435127,-507.85042121,0.00016438,2]
[350832950,1738151435136,-501.67150542,0.00016438,2]
[350832952,1738151435146,-500.0,0.00016438,2]
[350832954,1738151435155,-500.0,0.00016438,2]
[350832956,1738151435164,-501.80336178,0.00016438,2]
[350832958,1738151435174,-4204.23,0.00016438,2]
[350832960,1738151435185,-500.0,0.00016438,2]
[350832962,1738151435194,-501.50689531,0.00016438,2]
[350832964,1738151435204,-500.0,0.00016438,2]
[350832966,1738151435214,-500.0,0.00016438,2]
[350832968,1738151435223,-500.0,0.00016438,2]
[350832970,1738151435232,-500.0,0.00016438,2]
[350832972,1738151435242,-500.0,0.00016438,2]
[350832974,1738151435251,-501.90248918,0.00016438,2]
[350832977,1738151435270,-500.0,0.00016438,2]
[350832979,1738151435282,-500.0,0.00016438,2]
[350832981,1738151435293,-500.0,0.00016438,2]
[350832983,1738151435304,-500.60379772,0.00016438,2]
[350832985,1738151435314,-510.77875213,0.00016438,2]
[350832987,1738151435324,-630.51297817,0.00016438,2]
[350832990,1738151435334,-500.0,0.00016438,2]
[350832992,1738151435345,-515.11468898,0.00016438,2]
[350832994,1738151435354,-628.16,0.00016438,2]
[350832996,1738151435364,-500.83115464,0.00016438,2]
[350832998,1738151435374,-500.0,0.00016438,2]
[350833000,1738151435385,-500.0,0.00016438,2]
[350833002,1738151435395,-778.31,0.00016438,2]
[350833004,1738151435406,-500.97957766,0.00016438,2]
[350833006,1738151435416,-245.93034923,0.00016438,2]
[350833008,1738151435426,-504.99417213,0.00016438,2]
[350833010,1738151435437,-531.86419752,0.00016438,2]
[350833012,1738151435448,-500.0,0.00016438,2]
[350833014,1738151435458,-503.64904346,0.00016438,2]
[350833016,1738151435468,-502.45817998,0.00016438,2]
[350833018,1738151435477,-500.0,0.00016438,2]
[350833020,1738151435487,-500.0,0.00016438,2]
[350833022,1738151435496,-501.56501761,0.00016438,2]
[350833024,1738151435506,-500.0,0.00016438,2]
[350833026,1738151435516,-521.13,0.00016438,2]
[350833028,1738151435526,-507.21600722,0.00016438,2]
[350833030,1738151435535,-500.0,0.00016438,2]
[350833032,1738151435545,-1185.59,0.00016438,2]
[350833035,1738151435555,-500.0,0.00016438,2]
[350833037,1738151435565,-605.77,0.00016438,2]
[350833039,1738151435575,-505.04201128,0.00016438,2]
[350833041,1738151435584,-501.2197836,0.00016438,2]
[350833043,1738151435595,-510.25947604,0.00016438,2]
[350833045,1738151435604,-500.0,0.00016438,2]
[350833047,1738151435614,-2136.25,0.00016438,2]
[350833049,1738151435623,-500.0,0.00016438,2]
[350833051,1738151435632,-500.0,0.00016438,2]
[350833053,1738151435642,-561.3518422,0.00016438,2]
[350833055,1738151435651,-500.0,0.00016438,2]
[350833057,1738151435661,-500.0,0.00016438,2]
[350833059,1738151435671,-500.0,0.00016438,2]
[350833061,1738151435681,-151.0,0.00016438,2]
[350833063,1738151435690,-503.19725641,0.00016438,2]
[350833065,1738151435700,-601.70176474,0.00016438,2]
[350833067,1738151435709,-506.92965932,0.00016438,2]
[350833069,1738151435719,-500.0,0.00016438,2]
[350833071,1738151435728,-500.0,0.00016438,2]
[350833073,1738151435737,-151.0,0.00016438,2]
[350833075,1738151435747,-500.0,0.00016438,2]
[350833077,1738151435756,-500.0,0.00016438,2]
[350833079,1738151435766,-500.0,0.00016438,2]
[350833081,1738151435775,-500.0,0.00016438,2]
[350833083,1738151435785,-500.0,0.00016438,2]
[350833085,1738151435795,-878.16,0.00016438,2]
[350833087,1738151435804,-608.98372057,0.00016438,2]
[350833089,1738151435813,-500.0,0.00016438,2]
[350833091,1738151435823,-500.0,0.00016438,2]
[350833093,1738151435832,-500.0,0.00016438,2]
[350833095,1738151435843,-500.0,0.00016438,2]
[350833097,1738151435852,-500.0,0.00016438,2]
[350833099,1738151435861,-510.40892264,0.00016438,2]
[350833101,1738151435870,-500.0,0.00016438,2]
[350833104,1738151435881,-1426.49,0.00016438,2]
[350833106,1738151435895,-500.0,0.00016438,2]
[350833108,1738151435904,-500.0,0.00016438,2]
[350833110,1738151435914,-500.0,0.00016438,2]
[350833112,1738151435924,-500.0,0.00016438,2]
[350833114,1738151435935,-500.0,0.00016438,2]
[350833116,1738151435944,-500.0,0.00016438,2]
[350833118,1738151435954,-585.88,0.00016438,2]
[350833120,1738151435964,-500.0,0.00016438,2]
[350833122,1738151435974,-500.0,0.00016438,2]
[350833124,1738151435983,-503.45580174,0.00016438,2]
[350833126,1738151435992,-1376.0,0.00016438,2]
[350833128,1738151436002,-500.0,0.00016438,2]
[350833130,1738151436011,-500.0,0.00016438,2]
[350833132,1738151436021,-272.8174024,0.00016438,2]
[350833134,1738151436030,-500.0,0.00016438,2]
[350833136,1738151436040,-500.0,0.00016438,2]
[350833138,1738151436049,-500.0,0.00016438,2]
[350833140,1738151436059,-640.94,0.00016438,2]
[350833142,1738151436069,-500.0,0.00016438,2]
[350833144,1738151436078,-500.63552512,0.00016438,2]
[350833146,1738151436088,-500.0,0.00016473,2]
[350833148,1738151436098,-162.345,0.00016573,2]
[350833150,1738151436111,-500.0,0.00016573,2]
[350833152,1738151436120,-500.0,0.00016575,2]
[350833154,1738151436130,-500.0,0.00016575,2]
[350833157,1738151436140,-500.0,0.00016575,2]
[350833159,1738151436149,-500.0,0.00016575,2]
[350833160,1738151436158,-500.0,0.00016575,2]
[350833162,1738151436168,-500.0,0.00016575,2]
[350833165,1738151436178,-500.0,0.00016575,2]
[350833167,1738151436187,-500.0,0.00016575,2]
[350833168,1738151436197,-500.0,0.00016575,2]
[350833170,1738151436206,-500.0,0.00016575,2]
[350833173,1738151436216,-500.0,0.00016575,2]
[350833175,1738151436226,-500.0,0.00016575,2]
[350833177,1738151436235,-500.0,0.00016575,2]
[350833179,1738151436245,-500.0,0.00016575,2]
[350833181,1738151436255,-500.0,0.00016575,2]
[350833183,1738151436265,-500.0,0.00016575,2]
[350833185,1738151436274,-500.0,0.00016575,2]
[350833187,1738151436284,-500.0,0.00016575,2]
[350833189,1738151436294,-500.0,0.00016575,2]
[350833191,1738151436303,-500.0,0.00016575,2]
[350833193,1738151436313,-245.95,0.00016575,2]
[350833195,1738151436323,-245.57,0.00016575,2]
[350833197,1738151436333,-375.97,0.00016575,2]
[350833199,1738151436342,-500.0,0.00016575,2]
[350833201,1738151436352,-152.155522,0.00016575,2]
[350833203,1738151436362,-500.0,0.00016575,2]
[350833205,1738151436372,-151.0,0.00016575,2]
[350833207,1738151436381,-524.18,0.00016575,2]
[350833209,1738151436390,-12032.24,0.00016575,2]
[350833211,1738151436400,-500.0,0.00016575,2]
[350833213,1738151436409,-151.0,0.00016575,2]
[350833215,1738151436421,-151.0,0.00016575,2]
[350833217,1738151436430,-500.0,0.00016575,2]
[350833219,1738151436439,-500.0,0.00016575,2]
[350833221,1738151436449,-500.0,0.00016575,2]
[350833223,1738151436458,-4584.46,0.00016575,2]
[350833225,1738151436468,-500.0,0.00016575,2]
[350833228,1738151436479,-500.0,0.00016575,2]
[350833230,1738151436489,-151.0,0.00016575,2]
[350833231,1738151436498,-506.11892874,0.00016575,2]
[350833234,1738151436508,-515.30303953,0.00016575,2]
[350833236,1738151436517,-513.07998144,0.00016575,2]
[350833238,1738151436528,-503.5598114,0.00016575,2]
[350833240,1738151436538,-508.42411831,0.00016575,2]
[350833242,1738151436548,-500.0,0.00016575,2]
[350833244,1738151436558,-151.0,0.00016575,2]
[350833246,1738151436567,-151.0,0.00016575,2]
[350833248,1738151436577,-151.0,0.00016575,2]
[350833250,1738151436586,-151.0,0.00016575,2]
[350833252,1738151436595,-151.0,0.00016575,2]
[350833254,1738151436605,-515.19476654,0.00016575,2]
[350833256,1738151436615,-151.0,0.00016575,2]
[350833258,1738151436625,-151.0,0.00016575,2]
[350833260,1738151436634,-1012.14086884,0.00016575,2]
[350833262,1738151436644,-500.0,0.00016575,2]
[350833264,1738151436653,-151.0,0.00016575,2]
[350833266,1738151436663,-272.665136,0.00016575,2]
[350833269,1738151436673,-500.0,0.00016575,2]
[350833271,1738151436683,-241.75468283,0.00016575,2]
[350833273,1738151436692,-153.600231,0.00016575,2]
[350833275,1738151436701,-500.0,0.00016575,2]
[350833277,1738151436711,-571.4,0.00016575,2]
[350833279,1738151436720,-527.61,0.00016575,2]
[350833281,1738151436729,-151.0,0.00016575,2]
[350833283,1738151436739,-151.0,0.00016575,2]
[350833285,1738151436748,-1524.14,0.00016575,2]
[350833287,1738151436758,-208.58685973,0.00016575,2]
[350833289,1738151436767,-172.257211,0.00016575,2]
[350833291,1738151436776,-500.0,0.00016575,2]
[350833293,1738151436786,-500.0,0.00016575,2]
[350833295,1738151436795,-3583.43,0.00016575,2]
[350833297,1738151436804,-472.4008597,0.00016575,2]
[350833299,1738151436814,-500.0,0.00016575,2]
[350833301,1738151436824,-500.0,0.00016575,2]
[350833303,1738151436834,-500.0,0.00016575,2]
[350833305,1738151436844,-2133.95,0.00016575,2]
[350833307,1738151436854,-500.0,0.00016575,2]
[350833309,1738151436863,-500.0,0.00016575,2]
[350833311,1738151436872,-151.0,0.00016575,2]
[350833313,1738151436882,-151.0,0.00016575,2]
[350833316,1738151436895,-500.0,0.00016575,2]
[350833318,1738151436905,-500.0,0.00016575,2]
[350833320,1738151436914,-500.0,0.00016575,2]
[350833322,1738151436925,-500.0,0.00016575,2]
[350833324,1738151436936,-151.0,0.00016575,2]
[350833326,1738151436945,-500.0,0.00016575,2]
[350833328,1738151436954,-500.0,0.00016575,2]
[350833330,1738151436967,-151.0,0.00016575,2]
[350833332,1738151436977,-151.0,0.00016575,2]
[350833334,1738151436987,-500.0,0.00016575,2]
[350833336,1738151436996,-151.0,0.00016575,2]
[350833338,1738151437006,-500.0,0.00016575,2]
[350833340,1738151437015,-1478.76,0.00016575,2]
[350833342,1738151437025,-4204.23,0.00016575,2]
[350833344,1738151437035,-500.0,0.00016575,2]
[350833346,1738151437044,-500.0,0.00016575,2]
[350833348,1738151437054,-500.0,0.00016575,2]
[350833350,1738151437064,-500.0,0.00016575,2]
[350833352,1738151437073,-778.31,0.00016575,2]
[350833354,1738151437083,-500.0,0.00016575,2]
[350833356,1738151437092,-500.0,0.00016575,2]
[350833359,1738151437101,-1185.59,0.00016575,2]
[350833361,1738151437110,-157.85,0.00016575,2]
[350833363,1738151437120,-2136.25,0.00016575,2]
[350833364,1738151437129,-500.0,0.00016575,2]
[350833366,1738151437139,-500.0,0.00016575,2]
[350833369,1738151437149,-151.0,0.00016575,2]
[350833371,1738151437159,-500.0,0.00016575,2]
[350833373,1738151437168,-500.0,0.00016575,2]
[350833375,1738151437178,-878.16,0.00016575,2]
[350833376,1738151437188,-500.0,0.00016575,2]
[350833378,1738151437197,-500.0,0.00016575,2]
[350833380,1738151437206,-1426.49,0.00016575,2]
[350833383,1738151437216,-585.88,0.00016575,2]
[350833385,1738151437225,-500.0,0.00016575,2]
[350833386,1738151437235,-1376.0,0.00016575,2]
[350833388,1738151437244,-500.0,0.00016575,2]
[350833390,1738151437253,-500.0,0.00016575,2]
[350833391,1738151437262,-640.94,0.00016575,2]
[350833392,1738151437271,-4323.33800567,0.00016612,2]
[350833393,1738151437281,-539.0,0.0001669,2]
[350833394,1738151437290,-500.0,0.00016712,2]
[350833395,1738151437300,-500.0,0.00016712,2]
[350833396,1738151437309,-500.0,0.00016712,2]
[350833397,1738151437318,-500.0,0.00016712,2]
[350833398,1738151437327,-332.12634833,0.00016712,2]
[350833399,1738151437337,-581.1,0.00016712,2]
[350833400,1738151437346,-532.12,0.00016712,2]
[350833401,1738151437355,-173.62364406,0.00016712,2]
[350833402,1738151437364,-500.0,0.00016712,2]
[350833403,1738151437373,-500.0,0.00016712,2]
[350833405,1738151437383,-500.0,0.00016712,2]
[350833406,1738151437391,-7686.73542723,0.00016712,2]
[350833422,1738151437914,-151.0,0.00016438,2]
[350833423,1738151437923,-4345.50457277,0.00016712,2]
[350833424,1738151437936,-500.0,0.00016712,2]
[350833425,1738151437945,-500.0,0.00016712,2]
[350833426,1738151437955,-500.0,0.00016712,2]
[350833427,1738151437966,-751.85974135,0.00016712,2]
[350833428,1738151437978,-3075.86748295,0.00016712,2]
[350833429,1738151437989,-756.7327757,0.00016712,2]
[350833430,1738151437999,-314.5991403,0.00016712,2]
[350833431,1738151438008,-256.46572972,0.00016712,2]
[350833432,1738151438018,-151.0,0.00016712,2]
[350833433,1738151438027,-500.0,0.00016712,2]
[350833434,1738151438037,-500.0,0.00016712,2]
[350833435,1738151438046,-500.0,0.00016712,2]
[350833436,1738151438056,-527.61,0.00016712,2]
[350833437,1738151438066,-151.0,0.00016712,2]
[350833438,1738151438075,-1524.14,0.00016712,2]
[350833439,1738151438085,-500.0,0.00016712,2]
[350833440,1738151438094,-500.0,0.00016712,2]
[350833441,1738151438103,-169.73401835,0.00016712,2]
[350833442,1738151438115,-1644.09624097,0.00016712,2]
[350833443,1738151438126,-475.67,0.00016712,2]
[350833444,1738151438137,-799.8603524,0.00016712,2]
[350833445,1738151438148,-494.06938828,0.00016712,2]
[350833446,1738151438159,-584.03856672,0.00016712,2]
[350833642,1738151440131,-500.0,0.00016438,2]
[350833644,1738151440141,-500.0,0.00016575,2]
[350833646,1738151440151,-30.03143328,0.00016712,2]
[350833648,1738151440161,-2133.95,0.00016712,2]
[350833650,1738151440170,-1.09970088,0.00016712,2]
[350833947,1738151443084,-505.05631068,0.00016438,2]
[350833948,1738151443093,-423.25242623,0.00016438,2]
[350833950,1738151443105,-910.36757377,0.00016438,2]
[350833952,1738151443115,-1333.62,0.00016575,2]
[350833954,1738151443125,-498.90029912,0.00016712,2]
[350833957,1738151443134,-500.0,0.00016712,2]
[350833959,1738151443144,-500.0,0.00016712,2]
[350833961,1738151443153,-500.0,0.00016712,2]
[350833963,1738151443163,-500.0,0.00016712,2]
[350833965,1738151443171,-233.35152322,0.00016712,2]
[350833967,1738151443183,-266.64847678,0.00016712,2]
[350833969,1738151443193,-1.22194834,0.00016712,2]
[350835617,1738151951964,262.995589,0.00013973,2]
[350835618,1738151954082,182.193045,0.00013699,2]
[350835619,1738152022241,175.64385842,0.00015101,2]
[350835656,1738152632172,-250.0,0.00015421,2]
[350835659,1738152632182,-700.0,0.0001556,2]
[350835661,1738152632192,-153.83,0.0001615,2]
[350835663,1738152632202,-486.98084424,0.00016212,2]
[350835671,1738152632277,-4804.57752663,0.00016212,2]
[350835673,1738152632287,-421.71191933,0.00016338,2]
[350835675,1738152632299,-295.71713814,0.00016437,2]
[350835677,1738152632309,-300.0,0.00016437,2]
[350835679,1738152632319,-501.44398204,0.00016438,2]
[350835681,1738152632330,-500.0,0.00016438,2]
[350835684,1738152632340,-500.0,0.00016438,2]
[350835686,1738152632350,-500.0,0.00016438,2]
[350835688,1738152632361,-500.0,0.00016438,2]
[350835690,1738152632370,-500.0,0.00016438,2]
[350835692,1738152632380,-500.0,0.00016438,2]
[350835694,1738152632390,-500.0,0.00016438,2]
[350835696,1738152632399,-500.0,0.00016438,2]
[350835698,1738152632409,-546.11,0.00016438,2]
[350835700,1738152632419,-500.0,0.00016438,2]
[350835702,1738152632428,-500.0,0.00016438,2]
[350835704,1738152632439,-536.34,0.00016438,2]
[350835706,1738152632449,-500.0,0.00016438,2]
[350835708,1738152632459,-500.0,0.00016438,2]
[350835710,1738152632468,-500.0,0.00016438,2]
[350835712,1738152632478,-500.0,0.00016438,2]
[350835714,1738152632488,-500.0,0.00016438,2]
[350835716,1738152632497,-500.0,0.00016438,2]
[350835718,1738152632506,-500.0,0.00016438,2]
[350835720,1738152632516,-500.0,0.00016438,2]
[350835722,1738152632526,-500.0,0.00016438,2]
[350835724,1738152632535,-500.0,0.00016438,2]
[350835726,1738152632545,-500.0,0.00016438,2]
[350835728,1738152632555,-500.0,0.00016438,2]
[350835730,1738152632565,-500.0,0.00016438,2]
[350835732,1738152632574,-500.0,0.00016438,2]
[350835735,1738152632583,-500.0,0.00016438,2]
[350835737,1738152632593,-514.02,0.00016438,2]
[350835739,1738152632602,-500.0,0.00016438,2]